bitfinex/quotes_BTCUSD_20240815
["timestamp","ask_amount","ask_price","bid_price","bid_amount"]
[1723701121696,0.0821,58493.0,58492.0,0.119674]
[1723701122386,0.0821,58493.0,58492.0,0.359022]
[1723701122593,0.0821,58493.0,58492.0,0.59837]
[1723701123009,0.0821,58493.0,58492.0,0.59937]
[1723701123246,0.0821,58493.0,58492.0,0.60137]
[1723701123855,0.0821,58493.0,58492.0,0.61155264]
[1723701124283,0.0009053,58494.0,58493.0,0.59836]
[1723701125872,0.0009053,58494.0,58493.0,0.59936]
[1723701126524,0.0009053,58494.0,58493.0,0.838704]
[1723701127396,0.0009053,58494.0,58493.0,1.01025854]
[1723701127598,0.0009053,58494.0,58493.0,1.51030254]
[1723701127799,0.009053,58510.0,58504.0,0.735947]
[1723701128027,0.009053,58510.0,58504.0,1.50909954]
[1723701128436,0.0757,58509.0,58504.0,0.937546]
[1723701129061,0.0757,58509.0,58504.0,0.698247]
[1723701129423,0.009053,58510.0,58490.0,0.239354]
[1723701129424,0.0757,58504.0,58490.0,0.239354]
[1723701129718,0.0757,58504.0,58499.0,0.119659]
[1723701129719,0.119652,58503.0,58499.0,0.119659]
[1723701129907,0.0757,58504.0,58501.0,0.119654]
[1723701130112,0.0757,58504.0,58500.0,0.239314]
[1723701130314,0.0757,58504.0,58502.0,0.119652]
[1723701130534,0.0767,58504.0,58502.0,0.119652]
[1723701131398,0.0767,58504.0,58503.0,0.358954]
[1723701131593,0.001,58504.0,58503.0,0.59345861]
[1723701131914,0.00090421,58505.0,58504.0,0.358948]
[1723701132122,0.00090421,58505.0,58504.0,0.119649]
[1723701132481,0.00090421,58505.0,58504.0,0.358948]
[1723701134819,0.00090421,58505.0,58504.0,0.119649]
[1723701135022,0.00090421,58505.0,58504.0,0.358948]
[1723701135381,0.00090421,58505.0,58504.0,0.359948]
[1723701135886,0.00090421,58505.0,58504.0,0.358948]
[1723701136296,0.00190421,58505.0,58504.0,0.358948]
[1723701136765,0.00090421,58505.0,58504.0,0.358948]
[1723701137008,0.00190421,58505.0,58504.0,0.598247]
[1723701138850,0.00090421,58505.0,58504.0,0.598247]
[1723701139184,0.00190421,58505.0,58504.0,0.599247]
[1723701139305,0.00190421,58505.0,58504.0,0.598247]
[1723701139532,0.00190421,58505.0,58504.0,0.600247]
[1723701139718,0.08040421,58505.0,58504.0,0.121649]
[1723701140179,0.08040421,58505.0,58504.0,0.361948]
[1723701140428,0.14270421,58505.0,58504.0,0.122649]
[1723701140899,0.14270421,58505.0,58504.0,0.121649]
[1723701141336,0.14270421,58505.0,58504.0,0.119649]
[1723701141750,0.14270421,58505.0,58504.0,0.122649]
[1723701142153,0.14270421,58505.0,58504.0,0.119649]
[1723701142311,0.14270421,58505.0,58504.0,0.121649]
[1723701142734,0.14270421,58505.0,58504.0,0.002]
[1723701143297,0.67320075,58505.0,58504.0,0.003]
[1723701143500,3.22021594,58505.0,58504.0,0.003]
[1723701143750,2.43021594,58505.0,58504.0,0.003]
[1723701144104,0.981646,58504.0,58503.0,0.000822]
[1723701144309,1.15320054,58504.0,58503.0,0.000822]
[1723701144932,2.61835664,58504.0,58503.0,0.000822]
[1723701145177,0.119691,58484.0,58479.0,0.1197]
[1723701145428,0.119693,58483.0,58477.0,0.239408]
[1723701145638,0.239378,58485.0,58480.0,0.119698]
[1723701145857,0.119693,58483.0,58479.0,0.1197]
[1723701146086,0.119687,58486.0,58478.0,0.239406]
[1723701146293,0.1448,58487.0,58483.0,0.119691]
[1723701146503,0.002,58484.0,58483.0,0.119691]
[1723701147127,0.1448,58487.0,58483.0,0.119691]
[1723701147389,0.005,58486.0,58483.0,0.119691]
[1723701147971,0.003,58485.0,58483.0,0.119691]
[1723701148182,0.005,58486.0,58484.0,0.11969]
[1723701148387,0.005,58486.0,58481.0,0.239393]
[1723701148618,0.009,58486.0,58483.0,0.119692]
[1723701148992,0.005,58486.0,58483.0,0.119692]
[1723701149210,0.003,58485.0,58481.0,0.359088]
[1723701149409,0.003,58485.0,58483.0,0.119692]
[1723701149605,0.002,58484.0,58483.0,0.119692]
[1723701150065,0.002,58484.0,58483.0,0.598462]
[1723701150307,0.004,58486.0,58485.0,0.359065]
[1723701151374,1.34252519,58491.0,58488.0,0.11968]
[1723701151825,1.34252519,58491.0,58486.0,0.239372]
[1723701152250,1.27842519,58491.0,58490.0,0.119678]
[1723701152434,1.27842519,58491.0,58490.0,0.359035]
[1723701153092,1.28342519,58491.0,58490.0,0.119678]
[1723701153631,1.28842519,58491.0,58490.0,0.119678]
[1723701153834,1.28342519,58491.0,58490.0,0.119678]
[1723701154201,1.28342519,58491.0,58490.0,0.359035]
[1723701154598,0.005,58491.0,58490.0,0.359035]
[1723701155813,0.005,58491.0,58490.0,0.599214]
[1723701156016,0.009,58491.0,58490.0,0.599214]
[1723701157022,0.009,58491.0,58490.0,0.359857]
[1723701158031,0.009,58491.0,58490.0,0.599214]
[1723701161523,0.009,58491.0,58490.0,0.739014]
[1723701162540,0.009,58491.0,58490.0,0.1205]
[1723701162716,0.0619,58493.0,58491.0,0.119676]
[1723701162908,0.119663,58498.0,58494.0,0.119669]
[1723701163943,0.119664,58497.0,58493.0,0.119671]
[1723701164344,0.119664,58497.0,58494.0,0.001]
[1723701164567,0.006,58498.0,58494.0,0.120669]
[1723701164768,0.125662,58498.0,58494.0,0.120669]
[1723701164939,0.125662,58498.0,58494.0,0.001]
[1723701164940,0.119664,58497.0,58494.0,0.001]
[1723701165120,0.077,58496.0,58494.0,0.001]
[1723701166065,0.077,58496.0,58494.0,0.002]
[1723701166327,0.077,58496.0,58494.0,0.001]
[1723701166527,0.077,58496.0,58493.0,0.119672]
[1723701166956,0.082,58496.0,58493.0,0.119672]
[1723701167381,0.077,58496.0,58493.0,0.119672]
[1723701167584,0.081,58496.0,58493.0,0.119672]
[1723701167790,0.082,58496.0,58493.0,0.119672]
[1723701169163,0.082,58496.0,58494.0,0.119669]
[1723701169387,0.005,58496.0,58492.0,0.119672]
[1723701169817,0.009,58496.0,58492.0,0.119672]
[1723701170000,0.119664,58497.0,58493.0,0.119672]
[1723701170554,0.009,58496.0,58493.0,0.119672]
[1723701170887,0.005,58496.0,58493.0,0.119672]
[1723701171095,0.124664,58497.0,58493.0,0.119672]
[1723701172348,0.130664,58497.0,58493.0,0.120672]
[1723701172624,0.125664,58497.0,58493.0,0.120672]
[1723701173033,0.004,58496.0,58493.0,0.120672]
[1723701173235,0.125664,58497.0,58493.0,0.120672]
[1723701173693,0.130664,58497.0,58493.0,0.120672]
[1723701173951,0.119664,58497.0,58493.0,0.119672]
[1723701174356,0.009,58496.0,58493.0,0.119672]
[1723701174554,0.005,58496.0,58493.0,0.119672]
[1723701175498,0.005,58496.0,58494.0,0.119668]
[1723701175714,0.005,58496.0,58492.0,0.119672]
[1723701175961,0.119664,58497.0,58492.0,0.119672]
[1723701176177,0.125664,58497.0,58493.0,0.001]
[1723701176402,0.125664,58497.0,58493.0,0.120672]
[1723701176602,0.124664,58497.0,58493.0,0.119672]
[1723701176830,0.119664,58497.0,58493.0,0.119672]
[1723701177109,0.005,58496.0,58493.0,0.119672]
[1723701177541,0.119664,58497.0,58493.0,0.119672]
[1723701177919,0.130664,58497.0,58493.0,0.120672]
[1723701178131,0.119666,58496.0,58493.0,0.001]
[1723701178534,0.123666,58496.0,58493.0,0.001]
[1723701178870,0.201169,58495.0,58493.0,0.001]
[1723701179080,0.201169,58495.0,58491.0,0.119675]
[1723701179328,0.119673,58493.0,58490.0,0.000822]
[1723701179501,0.119676,58491.0,58490.0,0.000822]
[1723701179707,0.505329,58491.0,58490.0,0.000822]
[1723701180138,0.744682,58491.0,58490.0,0.000822]
[1723701180689,0.79579488,58491.0,58490.0,0.000822]
[1723701180888,0.82135132,58491.0,58490.0,0.002822]
[1723701181562,1.18244289,58491.0,58490.0,0.002822]
[1723701182053,0.82143257,58491.0,58490.0,0.002822]
[1723701182480,0.1463,58491.0,58490.0,0.003822]
[1723701182680,0.05117178,58491.0,58490.0,0.003822]
[1723701182879,0.07675785,58493.0,58490.0,0.002822]
[1723701182880,0.119673,58493.0,58490.0,0.002822]
[1723701183102,0.13167178,58494.0,58490.0,0.122499]
[1723701183254,0.007,58491.0,58490.0,0.360857]
[1723701183455,0.013,58491.0,58490.0,0.601214]
[1723701183686,0.006,58491.0,58490.0,0.742714]
[1723701183886,1.32959697,58500.0,58493.0,0.239342]
[1723701184105,1.32959697,58500.0,58494.0,0.239337]
[1723701184302,1.44925497,58500.0,58496.0,0.119665]
[1723701184726,1.44925497,58500.0,58493.0,0.239342]
[1723701184727,0.119664,58497.0,58493.0,0.11967]
[1723701184935,0.119662,58498.0,58494.0,0.119669]
[1723701185139,1.32959697,58500.0,58490.0,0.144322]
[1723701185360,1.44925497,58500.0,58496.0,0.119665]
[1723701185559,0.39856885,58502.0,58491.0,0.08577727]
[1723701185560,1.27842519,58501.0,58491.0,0.08577727]
[1723701185816,1.27842519,58501.0,58499.0,0.11966]
[1723701185817,1.32960848,58501.0,58499.0,0.11966]
[1723701185959,1.32960848,58501.0,58497.0,0.239324]
[1723701186161,1.32960848,58501.0,58499.0,0.119659]
[1723701186579,0.008,58500.0,58499.0,0.119659]
[1723701186750,1.32960848,58501.0,58499.0,0.119659]
[1723701187156,1.34560848,58501.0,58499.0,0.119659]
[1723701187358,1.33760848,58501.0,58499.0,0.119659]
[1723701187689,0.05118329,58500.0,58499.0,0.119659]
[1723701187895,0.05718329,58500.0,58499.0,0.120659]
[1723701188096,0.05718329,58500.0,58499.0,0.121659]
[1723701188277,0.05118329,58500.0,58499.0,0.120659]
[1723701189389,0.05118329,58500.0,58499.0,0.119659]
[1723701190352,1.27842519,58500.0,58499.0,0.358979]
[1723701191240,1.27942519,58500.0,58499.0,0.358979]
[1723701191689,1.27942519,58500.0,58499.0,0.35898]
[1723701192769,1.27842519,58500.0,58499.0,0.6625]
[1723701193113,1.28042519,58500.0,58499.0,0.6625]
[1723701193810,1.27842519,58500.0,58499.0,0.42318]
[1723701194026,1.27842519,58500.0,58499.0,0.35898]
[1723701194430,1.27942519,58500.0,58499.0,0.35898]
[1723701195034,1.27942519,58500.0,58498.0,0.119661]
[1723701195192,1.27942519,58500.0,58496.0,0.119664]
[1723701195424,0.0654,58498.0,58496.0,0.119665]
[1723701196497,0.11658329,58498.0,58496.0,0.119665]
[1723701196723,0.11658329,58498.0,58496.0,0.121665]
[1723701196921,0.11658329,58498.0,58496.0,0.120665]
[1723701197122,0.05118329,58498.0,58497.0,0.119664]
[1723701197368,0.12648329,58499.0,58497.0,0.119664]
[1723701197571,0.05118329,58498.0,58497.0,0.119664]
[1723701199335,0.05122791,58498.0,58497.0,0.119664]
[1723701199661,0.05122791,58498.0,58497.0,0.120664]
[1723701199866,0.17088991,58498.0,58497.0,0.001]
[1723701200456,0.119662,58498.0,58497.0,0.001]
[1723701201065,0.07684187,58499.0,58497.0,0.001]
[1723701201274,0.07684187,58499.0,58498.0,0.119662]
[1723701203083,0.07784187,58499.0,58498.0,0.119662]
[1723701203504,0.07684187,58499.0,58498.0,0.119662]
[1723701203706,0.07684187,58499.0,58497.0,0.119663]
[1723701203937,0.07684187,58499.0,58495.0,0.239336]
[1723701203938,0.07784187,58499.0,58495.0,0.239336]
[1723701204156,0.05124374,58497.0,58495.0,0.119667]
[1723701204399,0.05124374,58497.0,58494.0,0.01008028]
[1723701204792,0.05124374,58497.0,58496.0,0.119666]
[1723701205716,0.05103801,58497.0,58496.0,0.119666]
[1723701206092,0.05103801,58497.0,58496.0,0.358998]
[1723701206860,0.05103801,58497.0,58496.0,0.359998]
[1723701208269,0.07686945,58499.0,58498.0,0.119662]
[1723701209565,0.07786945,58499.0,58498.0,0.119662]
[1723701212479,0.1034926,58499.0,58498.0,0.119662]
[1723701212657,0.44712294,58499.0,58498.0,0.119662]
[1723701212863,0.4473727,58499.0,58498.0,0.119662]
[1723701214507,0.34487797,58499.0,58497.0,0.119664]
[1723701214795,0.44637659,58498.0,58497.0,0.119664]
[1723701215329,0.44637659,58498.0,58497.0,0.120487]
[1723701215537,0.44637659,58498.0,58497.0,0.359815]
[1723701216149,0.44637659,58498.0,58497.0,0.120487]
[1723701216355,0.44637659,58498.0,58497.0,0.359815]
[1723701216550,0.44637659,58498.0,58497.0,0.360815]
[1723701217398,0.44637659,58498.0,58497.0,0.359815]
[1723701217603,0.12812558,58499.0,58498.0,0.119661]
[1723701219603,0.13212558,58499.0,58498.0,0.119661]
[1723701219949,0.47919963,58499.0,58498.0,0.119661]
[1723701223444,0.008,58499.0,58498.0,0.262761]
[1723701223805,0.0848743,58499.0,58498.0,0.502085]
[1723701224035,0.0848743,58499.0,58498.0,0.119662]
[1723701226762,0.08487965,58499.0,58498.0,0.119662]
[1723701226967,0.48102763,58499.0,58498.0,0.119662]
[1723701227190,0.35288665,58499.0,58498.0,0.119662]
[1723701227443,0.43288665,58499.0,58497.0,0.000823]
[1723701227647,0.34488665,58498.0,58497.0,0.000823]
[1723701228209,0.40788665,58498.0,58497.0,0.000823]
[1723701228547,0.76687265,58498.0,58497.0,0.000823]
[1723701228869,1.00619665,58498.0,58497.0,0.000823]
[1723701229077,1.65406658,58498.0,58497.0,0.000823]
[1723701229293,2.07972949,58498.0,58497.0,0.000823]
[1723701229507,2.25270871,58498.0,58497.0,1e-08]
[1723701229948,2.24970871,58498.0,58497.0,1e-08]
[1723701230169,2.35150871,58498.0,58497.0,0.00100001]
[1723701230388,2.17852949,58498.0,58497.0,0.00100001]
[1723701230821,2.17052949,58498.0,58497.0,1e-08]
[1723701231205,2.19252949,58498.0,58497.0,0.00200001]
[1723701231408,2.10675222,58498.0,58497.0,0.00200001]
[1723701232016,3.38517741,58498.0,58497.0,0.00200001]
[1723701232433,3.37117741,58498.0,58497.0,0.00100001]
[1723701232633,3.54273195,58498.0,58497.0,0.00100001]
[1723701232854,3.55645219,58498.0,58497.0,0.00100001]
[1723701233216,3.54845219,58498.0,58497.0,1e-08]
[1723701233422,3.37689765,58498.0,58497.0,1e-08]
[1723701233618,3.39089765,58498.0,58497.0,0.00100001]
[1723701234426,3.32378353,58498.0,58497.0,0.00100001]
[1723701235967,3.32352479,58498.0,58497.0,0.00100001]
[1723701239052,4.11352479,58498.0,58497.0,0.00100001]
[1723701239904,4.28507933,58498.0,58497.0,0.00100001]
[1723701240429,3.51506827,58498.0,58497.0,0.00100001]
[1723701240634,4.2847607,58498.0,58497.0,0.00100001]
[1723701241215,4.35187786,58498.0,58497.0,0.00100001]
[1723701242743,0.740882,58491.0,58490.0,0.000822]
[1723701242949,3.72432372,58491.0,58490.0,0.000822]
[1723701243154,3.72432372,58491.0,58472.0,0.000823]
[1723701243155,1.27760319,58490.0,58472.0,0.000823]
[1723701243352,0.119713,58473.0,58472.0,0.000823]
[1723701244410,0.359139,58473.0,58472.0,0.000823]
[1723701244873,0.119711,58474.0,58472.0,0.003823]
[1723701245073,1.39731219,58475.0,58473.0,0.1426]
[1723701246864,0.119709,58475.0,58473.0,0.1426]
[1723701247064,0.123709,58475.0,58473.0,0.1426]
[1723701247492,0.119709,58475.0,58473.0,0.1426]
[1723701247692,0.122709,58475.0,58473.0,0.1426]
[1723701248506,0.122709,58475.0,58473.0,0.262313]
[1723701248507,0.003,58475.0,58473.0,0.262313]
[1723701248941,0.01,58475.0,58473.0,0.1426]
[1723701249278,0.129709,58475.0,58473.0,0.1426]
[1723701249491,0.122709,58475.0,58473.0,0.1426]
[1723701249699,0.126709,58475.0,58473.0,0.1426]
[1723701254303,0.126709,58475.0,58473.0,0.143423]
[1723701254506,0.126709,58475.0,58473.0,0.066523]
[1723701254704,0.119711,58474.0,58473.0,0.000823]
[1723701255994,0.121711,58474.0,58473.0,0.000823]
[1723701256622,0.603555,58474.0,58473.0,0.000823]
[1723701256832,0.680855,58474.0,58473.0,0.000823]
[1723701257209,1.98200881,58474.0,58473.0,0.000823]
[1723701257454,1.98200881,58474.0,58473.0,1e-08]
[1723701257455,2.30944491,58474.0,58473.0,1e-08]
[1723701257689,3.95422761,58474.0,58473.0,1e-08]
[1723701257895,3.99802464,58474.0,58473.0,1e-08]
[1723701258061,0.974391,58473.0,58472.0,0.00078301]
[1723701258298,2.97390193,58473.0,58472.0,0.00078301]
[1723701259041,3.06770193,58473.0,58472.0,0.00078301]
[1723701259248,3.08170193,58473.0,58472.0,0.00078301]
[1723701259463,3.20728699,58473.0,58472.0,0.00078301]
[1723701259685,2.95657147,58473.0,58472.0,0.00078301]
[1723701259885,3.09777147,58473.0,58472.0,0.00078301]
[1723701260467,2.8913927,58473.0,58472.0,0.00078301]
[1723701260665,2.9143927,58473.0,58472.0,0.00078301]
[1723701261315,2.98158945,58473.0,58472.0,0.00078301]
[1723701261516,2.9143927,58473.0,58472.0,0.00078301]
[1723701261671,0.265521,58469.0,58468.0,0.000823]
[1723701261881,1.10601218,58469.0,58468.0,0.000823]
[1723701262116,1.58489818,58469.0,58468.0,0.000823]
[1723701262357,1.15540454,58469.0,58468.0,0.000823]
[1723701262621,1.20641947,58469.0,58468.0,0.000823]
[1723701262966,1.23441947,58469.0,58468.0,0.000823]
[1723701263553,1.18340454,58469.0,58468.0,0.000823]
[1723701264690,0.79816154,58469.0,58468.0,0.000823]
[1723701267571,2.07498172,58469.0,58468.0,0.000823]
[1723701270833,1.83553872,58469.0,58468.0,0.000823]
[1723701271052,2.07498172,58469.0,58468.0,0.000823]
[1723701271455,2.22058172,58469.0,58468.0,0.000823]
[1723701271711,2.63157926,58469.0,58468.0,0.000823]
[1723701272117,2.22058172,58469.0,58468.0,0.000823]
[1723701272295,2.22058172,58469.0,58468.0,1e-08]
[1723701273540,2.15818172,58469.0,58468.0,1e-08]
[1723701273768,2.07498172,58469.0,58468.0,1e-08]
[1723701275066,1.66398418,58469.0,58468.0,1e-08]
[1723701275464,1.90342718,58469.0,58468.0,1e-08]
[1723701275886,1.88942718,58469.0,58468.0,1e-08]
[1723701276243,1.30282018,58469.0,58468.0,1e-08]
[1723701276419,1.42254118,58469.0,58468.0,1e-08]
[1723701277377,1.28882018,58469.0,58468.0,0.07680001]
[1723701277608,1.41954118,58469.0,58468.0,0.07680001]
[1723701278419,1.65898418,58469.0,58468.0,1e-08]
[1723701278620,1.89842718,58469.0,58468.0,1e-08]
[1723701279053,1.65898418,58469.0,58468.0,1e-08]
[1723701279434,0.382164,58469.0,58468.0,1e-08]
[1723701279838,0.3830693,58469.0,58468.0,1e-08]
[1723701280624,0.3830693,58469.0,58468.0,0.08290001]
[1723701281360,0.3830693,58469.0,58468.0,1e-08]
[1723701281564,0.6225123,58469.0,58468.0,1e-08]
[1723701282407,0.6211123,58469.0,58468.0,1e-08]
[1723701283429,0.3816693,58469.0,58468.0,1e-08]
[1723701284270,0.43272578,58469.0,58468.0,1e-08]
[1723701284626,0.3816693,58469.0,58468.0,1e-08]
[1723701284843,0.43272578,58469.0,58468.0,1e-08]
[1723701285262,0.6211123,58469.0,58468.0,1e-08]
[1723701285462,1.89793248,58469.0,58468.0,1e-08]
[1723701287099,1.65848948,58469.0,58468.0,1e-08]
[1723701287718,1.73507421,58469.0,58468.0,1e-08]
[1723701288312,1.65848948,58469.0,58468.0,1e-08]
[1723701288515,1.97451721,58469.0,58468.0,1e-08]
[1723701289204,2.52851475,58469.0,58468.0,1e-08]
[1723701289570,2.88062523,58469.0,58468.0,1e-08]
[1723701292662,2.77851226,58469.0,58468.0,1e-08]
[1723701292955,2.63551226,58469.0,58468.0,1e-08]
[1723701293204,2.39606926,58469.0,58468.0,1e-08]
[1723701293410,2.08752311,58469.0,58468.0,1e-08]
[1723701293586,2.32696611,58469.0,58468.0,1e-08]
[1723701294575,2.22457585,58469.0,58468.0,1e-08]
[1723701295396,2.35256394,58469.0,58468.0,1e-08]
[1723701296551,2.22457585,58469.0,58468.0,1e-08]
[1723701297489,0.94775567,58469.0,58468.0,1e-08]
[1723701297933,1.18574837,58469.0,58468.0,1e-08]
[1723701298398,1.42519137,58469.0,58468.0,1e-08]
[1723701299256,1.50049137,58469.0,58468.0,1e-08]
[1723701299512,1.50049137,58469.0,58462.0,0.000823]
[1723701299513,0.976734,58463.0,58462.0,0.000823]
[1723701299725,1.54261601,58463.0,58462.0,0.000823]
[1723701299933,2.19138772,58463.0,58462.0,0.000823]
[1723701300137,1.95192072,58463.0,58462.0,0.000823]
[1723701300571,2.12494705,58463.0,58462.0,0.000823]
[1723701301415,2.12894705,58463.0,58462.0,0.000823]
[1723701301624,1.95592072,58463.0,58462.0,0.000823]
[1723701301831,1.96092072,58463.0,58462.0,0.000823]
[1723701302035,2.13399786,58463.0,58462.0,0.000823]
[1723701302654,2.2589595,58463.0,58462.0,0.000823]
[1723701303274,3.53577968,58463.0,58462.0,0.000823]
[1723701304669,3.36270254,58463.0,58462.0,0.000823]
[1723701305977,2.76513619,58463.0,58462.0,0.000823]
[1723701306183,3.05102139,58463.0,58462.0,0.000823]
[1723701306402,3.00385725,58463.0,58462.0,0.000823]
[1723701306615,4.42366433,58463.0,58462.0,0.000823]
[1723701306825,4.26121849,58463.0,58462.0,0.000823]
[1723701307027,4.43277303,58463.0,58462.0,0.000823]
[1723701308095,4.42777303,58463.0,58462.0,0.000823]
[1723701308498,4.43277303,58463.0,58462.0,0.000823]
[1723701308927,4.42377303,58463.0,58462.0,0.000823]
[1723701309133,4.44777303,58463.0,58462.0,0.000823]
[1723701309335,4.43777303,58463.0,58462.0,0.000823]
[1723701309516,0.59878,58452.0,58451.0,0.000823]
[1723701309722,2.38907253,58452.0,58451.0,0.000823]
[1723701309935,2.39808142,58452.0,58451.0,0.000823]
[1723701310146,2.63759342,58452.0,58451.0,0.000823]
[1723701310810,3.14887924,58452.0,58451.0,0.000823]
[1723701311011,3.38273378,58452.0,58451.0,0.000823]
[1723701311212,3.62224578,58452.0,58451.0,0.000823]
[1723701311417,4.42024578,58452.0,58451.0,0.000823]
[1723701311690,4.64724578,58452.0,58451.0,0.000823]
[1723701312083,4.66124578,58452.0,58451.0,0.000823]
[1723701312282,4.64724578,58452.0,58451.0,0.000823]
[1723701312559,4.48969124,58452.0,58451.0,0.000823]
[1723701312730,4.5066618,58452.0,58451.0,0.000823]
[1723701313119,4.48969124,58452.0,58451.0,0.000823]
[1723701313293,4.81950817,58452.0,58451.0,0.000823]
[1723701313689,0.746232,58447.0,58446.0,0.000823]
[1723701313901,2.46980078,58447.0,58446.0,0.000823]
[1723701314090,3.3800526,58447.0,58446.0,0.000823]
[1723701314220,3.42659108,58447.0,58446.0,0.000823]
[1723701314432,0.983781,58439.0,58438.0,0.00823]
[1723701314639,2.87277634,58439.0,58438.0,0.00823]
[1723701315445,3.30942204,58439.0,58438.0,0.00823]
[1723701315658,3.19355517,58439.0,58438.0,0.00823]
[1723701315855,3.02200063,58439.0,58438.0,0.00823]
[1723701316101,2.63713463,58439.0,58438.0,0.00823]
[1723701316302,2.76500201,58439.0,58438.0,0.00823]
[1723701316504,2.64913463,58439.0,58438.0,0.00823]
[1723701317143,2.77700201,58439.0,58438.0,0.00823]
[1723701317332,3.09125655,58439.0,58438.0,0.00823]
[1723701317582,3.06559421,58439.0,58438.0,0.00823]
[1723701318611,2.62428726,58439.0,58438.0,0.00823]
[1723701318785,2.78760376,58439.0,58438.0,0.00823]
[1723701319618,2.52933213,58439.0,58438.0,0.00823]
[1723701320753,2.45273272,58439.0,58438.0,0.00823]
[1723701321508,2.50377272,58439.0,58438.0,0.00823]
[1723701321708,1.86994072,58439.0,58438.0,0.00823]
[1723701321908,1.63534618,58439.0,58438.0,0.07233]
[1723701322109,1.88891218,58439.0,58438.0,0.07233]
[1723701322309,1.90291218,58439.0,58438.0,0.07233]
[1723701322509,1.90291218,58439.0,58438.0,0.00823]
[1723701322510,2.28603272,58439.0,58438.0,0.00823]
[1723701322911,2.31403272,58439.0,58438.0,0.00823]
[1723701323121,2.30003272,58439.0,58438.0,0.00823]
[1723701323337,2.28603272,58439.0,58438.0,0.00823]
[1723701323541,2.29703272,58439.0,58438.0,0.00823]
[1723701324352,1.64634618,58439.0,58438.0,0.07473]
[1723701325245,1.42078018,58439.0,58438.0,0.14973]
[1723701325804,0.025,58439.0,58438.0,0.14973]
[1723701326007,0.014,58439.0,58438.0,0.269515]
[1723701326218,0.014,58439.0,58438.0,0.14973]
[1723701326589,0.028,58439.0,58438.0,0.14973]
[1723701326805,0.028,58439.0,58438.0,0.269515]
[1723701327024,0.014,58439.0,58438.0,0.269515]
[1723701328295,0.014,58439.0,58438.0,0.14973]
[1723701328502,0.021,58439.0,58438.0,0.14973]
[1723701328709,0.007,58439.0,58438.0,0.14973]
[1723701328879,0.119779,58441.0,58438.0,0.14973]
[1723701329126,0.006,58439.0,58438.0,0.14973]
[1723701329396,0.012,58439.0,58438.0,0.14973]
[1723701329631,0.012,58439.0,58438.0,0.269515]
[1723701329832,0.009,58439.0,58438.0,0.14973]
[1723701330003,0.11978,58441.0,58438.0,0.14973]
[1723701330207,0.12978,58441.0,58438.0,0.14973]
[1723701330349,0.007,58439.0,58438.0,0.14973]
[1723701331538,0.007,58439.0,58438.0,0.269515]
[1723701331781,0.015,58439.0,58438.0,0.269515]
[1723701332274,0.007,58439.0,58438.0,0.269515]
[1723701332504,0.119777,58442.0,58438.0,0.269515]
[1723701332746,0.015,58439.0,58438.0,0.269515]
[1723701333215,0.007,58439.0,58438.0,0.269515]
[1723701333511,0.006,58439.0,58438.0,0.269514]
[1723701333990,0.006,58439.0,58438.0,0.14973]
[1723701334224,0.006,58439.0,58438.0,0.269515]
[1723701334742,0.006,58439.0,58438.0,0.14973]
[1723701334968,0.00579415,58439.0,58438.0,0.14973]
[1723701335444,0.00579415,58439.0,58438.0,0.269515]
[1723701335681,0.01279415,58439.0,58438.0,0.269515]
[1723701339456,1.43019769,58439.0,58438.0,0.00823]
[1723701339640,1.43019769,58439.0,58431.0,0.0002]
[1723701339641,0.598985,58432.0,58431.0,0.0002]
[1723701339855,1.17881081,58432.0,58431.0,0.0002]
[1723701340035,1.24241081,58432.0,58431.0,0.0002]
[1723701340307,1.29351429,58432.0,58431.0,0.0002]
[1723701340543,1.24241081,58432.0,58431.0,0.0002]
[1723701340785,1.29352448,58432.0,58431.0,0.0002]
[1723701341010,1.24241081,58432.0,58431.0,0.0002]
[1723701341426,1.32818808,58432.0,58431.0,0.0002]
[1723701341689,1.4048433,58432.0,58431.0,0.0002]
[1723701341952,1.24028876,58432.0,58431.0,0.0002]
[1723701343559,1.24628876,58432.0,58431.0,0.0002]
[1723701344001,1.49972692,58432.0,58431.0,0.0002]
[1723701344714,1.53819296,58432.0,58431.0,0.0002]
[1723701344920,2.81419014,58432.0,58431.0,0.0002]
[1723701345355,2.81443613,58432.0,58431.0,0.0002]
[1723701345565,2.88367561,58432.0,58431.0,0.0002]
[1723701345793,2.71212107,58432.0,58431.0,0.0002]
[1723701346621,2.81444881,58432.0,58431.0,0.0002]
[1723701348058,2.71212107,58432.0,58431.0,0.0002]
[1723701349540,2.8400149,58432.0,58431.0,0.0002]
[1723701349746,3.5500149,58432.0,58431.0,0.0002]
[1723701349957,3.55045107,58432.0,58431.0,0.001023]
[1723701350579,3.72200561,58432.0,58431.0,0.001023]
[1723701350978,3.55045107,58432.0,58431.0,0.001023]
[1723701351618,3.4225098,58432.0,58431.0,0.001023]
[1723701353232,3.42257117,58432.0,58431.0,0.001023]
[1723701354528,0.598995,58431.0,58430.0,0.0002983]
[1723701354729,1.87108999,58431.0,58430.0,0.0002983]
[1723701356591,1.87708999,58431.0,58430.0,0.0002983]
[1723701356795,3.15808717,58431.0,58430.0,0.0002983]
[1723701357796,2.14848917,58431.0,58430.0,0.0002983]
[1723701358034,2.14848917,58431.0,58430.0,0.5020013]
[1723701358035,1.72001228,58431.0,58430.0,0.5020013]
[1723701358246,1.36384997,58431.0,58430.0,0.7416033]
[1723701358457,1.33823089,58431.0,58430.0,0.5020013]
[1723701359079,1.33823518,58431.0,58430.0,0.7416033]
[1723701359751,1.28699718,58431.0,58430.0,0.7416033]
[1723701360374,1.28699718,58431.0,58430.0,0.5020013]
[1723701360581,1.27599718,58431.0,58430.0,0.5020013]
[1723701360793,1.33223518,58431.0,58430.0,0.5020013]
[1723701361025,1.33823518,58431.0,58430.0,0.2623993]
[1723701361239,1.28199718,58431.0,58430.0,0.2623993]
[1723701361451,1.27799718,58431.0,58430.0,0.2623993]
[1723701361671,1.32923526,58431.0,58430.0,0.2623993]